bitfinex-derivatives/quotes_BTCF0:USTF0_20240817
["timestamp","ask_amount","ask_price","bid_price","bid_amount"]
[1723904169165,0.093093,59428.0,59427.0,0.3608]
[1723904169362,0.093093,59428.0,59427.0,0.48899809]
[1723904169558,0.03,59428.0,59427.0,0.55209209]
[1723904169774,0.13646199,59428.0,59427.0,0.55209209]
[1723904170866,0.14546199,59428.0,59427.0,0.55209209]
[1723904171575,0.14546199,59428.0,59422.0,0.09335233]
[1723904171576,0.21955399,59428.0,59426.0,0.08394535]
[1723904171775,0.0931,59427.0,59426.0,0.08394535]
[1723904171972,0.3031,59427.0,59426.0,0.21212624]
[1723904172167,0.3031,59427.0,59425.0,0.08394535]
[1723904172475,0.0931,59426.0,59425.0,0.08394535]
[1723904172672,0.1431,59426.0,59425.0,0.12818356]
[1723904172868,0.1431,59426.0,59425.0,0.12818207]
[1723904173375,0.1431,59426.0,59425.0,0.19127707]
[1723904174075,0.1431,59426.0,59425.0,0.2752148]
[1723904174472,0.1501,59426.0,59425.0,0.2752148]
[1723904174673,0.1501,59426.0,59425.0,0.19127707]
[1723904175261,0.1591,59426.0,59425.0,0.19127707]
[1723904177465,0.1591,59426.0,59425.0,0.27518486]
[1723904177773,0.1591,59426.0,59425.0,0.19127707]
[1723904177976,0.1591,59426.0,59425.0,0.27518489]
[1723904178381,0.1591,59426.0,59425.0,0.19127707]
[1723904178771,0.3091,59426.0,59425.0,0.27518633]
[1723904179678,0.3091,59426.0,59425.0,0.27518437]
[1723904179972,0.3091,59426.0,59425.0,0.27518445]
[1723904181470,0.3091,59426.0,59425.0,0.19127707]
[1723904181674,0.3091,59426.0,59425.0,0.28437707]
[1723904181675,0.216,59426.0,59425.0,0.28437707]
[1723904181874,0.216,59426.0,59425.0,0.36826948]
[1723904182072,0.3261,59440.0,59432.0,0.063088]
[1723904182274,0.01264615,59437.0,59432.0,0.62610988]
[1723904182473,0.01264615,59437.0,59432.0,0.71970988]
[1723904183077,0.01264615,59437.0,59432.0,0.8204854]
[1723904183383,0.0142516,59433.0,59432.0,0.71970988]
[1723904183775,0.01264615,59437.0,59436.0,0.063084]
[1723904183979,0.06308,59440.0,59437.0,0.063083]
[1723904184174,0.21308,59440.0,59437.0,0.063083]
[1723904186887,0.22208,59440.0,59437.0,0.064083]
[1723904187190,0.009,59440.0,59439.0,0.156181]
[1723904187481,0.009,59440.0,59439.0,0.28432358]
[1723904187685,0.009,59440.0,59439.0,0.32134351]
[1723904187983,0.009,59440.0,59439.0,0.28432358]
[1723904188191,0.009,59440.0,59439.0,0.35836192]
[1723904188485,0.33521629,59445.0,59444.0,0.063076]
[1723904188789,0.34789371,59445.0,59444.0,0.60059797]
[1723904189088,0.34789371,59445.0,59444.0,0.516976]
[1723904190891,0.36189371,59445.0,59444.0,0.518976]
[1723904191090,0.45499371,59445.0,59444.0,0.3628]
[1723904191293,0.51806771,59445.0,59444.0,0.3628]
[1723904191592,0.53806771,59445.0,59444.0,0.3628]
[1723904193193,0.53806771,59445.0,59444.0,0.002]
[1723904193194,0.89886771,59445.0,59444.0,0.002]
[1723904195087,0.53806771,59445.0,59444.0,0.002]
[1723904196088,0.53806771,59445.0,59444.0,0.06884613]
[1723904196585,0.53806771,59445.0,59444.0,0.002]
[1723904196784,0.53806771,59445.0,59444.0,0.06882876]
[1723904196984,0.53806771,59445.0,59444.0,0.002]
[1723904197180,0.53806771,59445.0,59444.0,0.06882876]
[1723904197587,0.69806771,59445.0,59444.0,0.06882876]
[1723904198302,0.69806771,59445.0,59444.0,0.002]
[1723904198985,0.69606771,59445.0,59444.0,0.001]
[1723904199782,0.65399875,59445.0,59444.0,0.001]
[1723904203092,1.15867875,59445.0,59444.0,0.001]
[1723904203388,1.20777875,59445.0,59444.0,0.001]
[1723904204384,0.063081,59439.0,59438.0,0.06682876]
[1723904204593,0.063082,59438.0,59437.0,0.00156]
[1723904204791,0.632482,59438.0,59435.0,0.06682876]
[1723904204992,0.0931,59436.0,59435.0,0.06682876]
[1723904205197,0.4731,59436.0,59435.0,0.06682876]
[1723904205599,0.536184,59436.0,59435.0,0.06682876]
[1723904206594,0.536184,59436.0,59435.0,0.06982876]
[1723904206901,0.536184,59436.0,59435.0,0.003]
[1723904207492,0.063085,59435.0,59434.0,0.00025233]
[1723904207696,0.293085,59435.0,59434.0,0.00025233]
[1723904209099,0.299085,59435.0,59434.0,0.00025233]
[1723904209302,0.149085,59435.0,59434.0,0.30513292]
[1723904209497,0.149085,59435.0,59434.0,0.22150944]
[1723904209705,0.149085,59435.0,59434.0,0.28459544]
[1723904209706,0.086,59435.0,59434.0,0.28459544]
[1723904210588,0.085,59435.0,59434.0,0.29772248]
[1723904210992,0.083,59435.0,59434.0,0.29772248]
[1723904211194,0.083,59435.0,59434.0,0.399498]
[1723904211593,0.083,59435.0,59434.0,0.398498]
[1723904211794,0.083,59435.0,59434.0,0.399498]
[1723904211995,0.083,59435.0,59434.0,0.492698]
[1723904212194,0.081,59435.0,59434.0,0.39192248]
[1723904212394,0.081,59435.0,59434.0,0.49243516]
[1723904212801,0.081,59435.0,59434.0,0.29300812]
[1723904213005,0.081,59435.0,59434.0,0.19249544]
[1723904213205,0.3341,59435.0,59434.0,0.19249544]
[1723904214102,0.3341,59435.0,59434.0,0.19250067]
[1723904214506,0.397185,59435.0,59434.0,0.12941467]
[1723904215098,0.397185,59435.0,59434.0,0.00125233]
[1723904215701,0.901945,59435.0,59434.0,0.06827669]
[1723904215900,0.995345,59435.0,59434.0,0.06827669]
[1723904216205,0.995345,59435.0,59423.0,0.3608]
[1723904216206,0.063087,59433.0,59430.0,0.06702491]
[1723904216394,0.063087,59433.0,59423.0,0.08376576]
[1723904216395,0.063092,59428.0,59426.0,0.06702491]
[1723904216596,0.063092,59428.0,59424.0,0.06702491]
[1723904216597,0.063096,59425.0,59424.0,0.06702491]
[1723904216800,1.076996,59425.0,59424.0,0.06702491]
[1723904217003,0.063097,59424.0,59423.0,0.06702491]
[1723904217200,0.063099,59422.0,59421.0,0.06702491]
[1723904217508,0.566199,59422.0,59421.0,0.06702491]
[1723904218106,0.0631,59421.0,59420.0,0.06702491]
[1723904218297,0.063102,59419.0,59418.0,0.00025233]
[1723904218499,0.363102,59419.0,59418.0,0.00025233]
[1723904219097,0.533102,59419.0,59418.0,0.00025233]
[1723904220203,0.063105,59416.0,59415.0,0.06702491]
[1723904220506,0.063109,59412.0,59411.0,0.06702491]
[1723904220711,0.52,59412.0,59405.0,0.19338276]
[1723904220907,0.52,59412.0,59409.0,0.06695584]
[1723904220908,0.063111,59411.0,59409.0,0.06695584]
[1723904221112,0.063117,59405.0,59404.0,0.42775584]
[1723904221293,0.133117,59405.0,59404.0,0.42775584]
[1723904221499,0.133117,59405.0,59404.0,0.3608]
[1723904222408,0.134117,59405.0,59404.0,0.3748]
[1723904223200,0.135117,59405.0,59404.0,0.3888]
[1723904223399,0.065117,59405.0,59404.0,0.3888]
[1723904225602,0.135117,59405.0,59404.0,0.3888]
[1723904226503,0.285117,59405.0,59404.0,0.3888]
[1723904230609,0.285117,59405.0,59404.0,0.028]
[1723904237323,0.348234,59405.0,59404.0,0.028]
[1723904237509,0.580934,59405.0,59404.0,0.028]
[1723904241807,0.941734,59405.0,59404.0,0.028]
[1723904242007,0.802134,59405.0,59404.0,0.028]
[1723904244807,0.06312,59402.0,59401.0,0.05019613]
[1723904245005,0.126242,59401.0,59400.0,0.05019613]
[1723904245217,0.573121,59401.0,59399.0,0.00025233]
[1723904245416,0.487044,59400.0,59399.0,0.00025233]
[1723904245611,1.057044,59400.0,59399.0,0.00025233]
[1723904246017,1.275844,59400.0,59399.0,0.00025233]
[1723904246219,1.275844,59400.0,59399.0,0.05044846]
[1723904246416,1.275844,59400.0,59399.0,0.0502914]
[1723904246417,1.1496,59400.0,59399.0,0.0502914]
[1723904246619,0.063123,59399.0,59398.0,0.05028806]
[1723904246821,0.563123,59399.0,59398.0,0.05028806]
[1723904247211,0.044125,59397.0,59396.0,0.00011963]
[1723904247412,0.63725,59397.0,59396.0,0.00011963]
[1723904247818,1.13733,59397.0,59396.0,0.00011963]
[1723904248126,0.2328,59396.0,59394.0,0.0503175]
[1723904248311,0.063128,59395.0,59391.0,0.06720817]
[1723904248521,0.5936,59392.0,59391.0,0.00025233]
[1723904248717,1.0836,59392.0,59391.0,0.00025233]
[1723904248931,1.58885542,59392.0,59391.0,0.00025233]
[1723904249119,1.58485542,59392.0,59391.0,0.00025233]
[1723904249429,1.64798642,59392.0,59391.0,0.00025233]
[1723904250219,2.28474642,59392.0,59382.0,0.08376576]
[1723904250425,0.126264,59391.0,59390.0,0.05031126]
[1723904250620,0.626264,59391.0,59390.0,0.05031126]
[1723904250918,0.126266,59390.0,59389.0,0.05031126]
[1723904251122,0.636266,59390.0,59389.0,0.05031126]
[1723904251316,1.141386,59390.0,59389.0,0.05031126]
[1723904251523,0.063136,59387.0,59386.0,0.06708169]
[1723904251716,0.063137,59386.0,59385.0,0.06708169]
[1723904251917,0.363137,59386.0,59385.0,0.06708169]
[1723904252425,0.063138,59385.0,59384.0,0.06725354]
[1723904252624,0.373138,59385.0,59384.0,0.06725354]
[1723904253624,0.373138,59385.0,59384.0,0.00025255]
[1723904253823,0.373138,59385.0,59384.0,0.06725354]
[1723904254025,0.374138,59385.0,59384.0,0.06725354]
[1723904254321,0.374138,59385.0,59384.0,0.00025255]
[1723904254515,0.374138,59385.0,59384.0,0.05048951]
[1723904254818,0.375138,59385.0,59384.0,0.00025255]
[1723904255617,0.375138,59385.0,59384.0,0.05047885]
[1723904256031,0.375138,59385.0,59384.0,0.00025255]
[1723904256319,0.375138,59385.0,59384.0,0.05047658]
[1723904256916,0.438276,59385.0,59384.0,0.05022403]
[1723904257229,0.063142,59381.0,59377.0,0.05021571]
[1723904257415,0.3608,59378.0,59375.0,0.05021571]
[1723904257614,0.063147,59377.0,59376.0,0.05021571]
[1723904257810,0.503147,59377.0,59376.0,0.05021571]
[1723904258113,0.44,59377.0,59374.0,0.05021571]
[1723904258625,0.063152,59372.0,59371.0,0.05046826]
[1723904258823,0.993952,59372.0,59371.0,0.05046826]
[1723904259523,0.993952,59372.0,59371.0,0.00025255]
[1723904260019,0.994952,59372.0,59371.0,0.00025255]
[1723904261210,0.995952,59372.0,59371.0,0.00025255]
[1723904262721,1.564384,59372.0,59371.0,0.00025255]
[1723904263414,0.063159,59365.0,59364.0,0.05021571]
[1723904263619,0.83408767,59365.0,59364.0,0.05021571]
[1723904264225,0.063161,59364.0,59363.0,0.05021571]
[1723904264423,0.343161,59364.0,59363.0,0.05021571]
[1723904265926,0.344161,59364.0,59363.0,0.05021571]
[1723904266140,0.063162,59363.0,59362.0,0.05021571]
[1723904266426,0.063162,59363.0,59361.0,0.00020335]
[1723904266427,0.063163,59362.0,59361.0,0.00020335]
[1723904266628,0.28,59362.0,59361.0,0.00020335]
[1723904267632,0.343163,59362.0,59361.0,0.00020335]
[1723904268220,0.343163,59362.0,59361.0,0.05037919]
[1723904268431,0.5887868,59362.0,59361.0,0.00020335]
[1723904268731,0.9495868,59362.0,59361.0,0.00020335]
[1723904269030,0.9505868,59362.0,59361.0,0.00020335]
[1723904269729,0.9515868,59362.0,59361.0,0.00020335]
[1723904275619,0.9515868,59362.0,59361.0,0.05038401]
[1723904275818,0.9515868,59362.0,59361.0,0.00020335]
[1723904276431,0.9515868,59362.0,59361.0,0.05038401]
[1723904277226,0.9515868,59362.0,59361.0,0.00020335]
[1723904277427,0.9515868,59362.0,59361.0,0.05038401]
[1723904278236,0.9515868,59362.0,59361.0,0.00020335]
[1723904279132,0.9515868,59362.0,59361.0,0.05048928]
[1723904279640,0.9515868,59362.0,59361.0,0.00020335]
[1723904279842,0.9515868,59362.0,59361.0,0.05050341]
[1723904280138,0.9515868,59362.0,59361.0,0.00020335]
[1723904280335,1.3123868,59362.0,59361.0,0.05050242]
[1723904280537,0.126336,59357.0,59356.0,1e-08]
[1723904280723,0.063172,59353.0,59352.0,0.00875723]
[1723904280928,0.063173,59352.0,59351.0,0.00875723]
[1723904281126,0.553173,59352.0,59351.0,0.00875723]
[1723904281628,0.55333979,59352.0,59351.0,0.00875723]
[1723904282735,0.56621337,59352.0,59351.0,0.00875723]
[1723904282934,0.56721337,59352.0,59351.0,0.00875723]
[1723904283131,0.56821337,59352.0,59351.0,0.00875723]
[1723904283334,0.50504037,59352.0,59345.0,0.063181]
[1723904283530,0.423977,59349.0,59345.0,0.063181]
[1723904283732,0.913977,59349.0,59345.0,0.063181]
[1723904283937,0.063178,59348.0,59345.0,0.063181]
[1723904284131,0.463178,59348.0,59345.0,0.063181]
[1723904285030,0.063179,59347.0,59345.0,0.063181]
[1723904285236,0.06318,59346.0,59343.0,0.08376576]
[1723904285542,0.53318,59346.0,59343.0,0.08376576]
[1723904286343,0.53318,59346.0,59344.0,0.19154007]
[1723904286639,0.53418,59346.0,59344.0,0.14694676]
[1723904287029,0.53518,59346.0,59344.0,0.14694676]
[1723904287436,0.53518,59346.0,59345.0,0.08376576]
[1723904288734,0.53518,59346.0,59340.0,0.08376576]
[1723904288735,0.7048,59346.0,59340.0,0.08376576]
[1723904289036,0.7048,59346.0,59338.0,0.08376576]
[1723904289037,0.063187,59339.0,59338.0,0.08376576]
[1723904289229,0.55298541,59339.0,59335.0,0.08376576]
[1723904289429,0.063191,59335.0,59334.0,0.08376576]
[1723904289636,0.253191,59335.0,59334.0,0.08376576]
[1723904289843,0.253191,59335.0,59334.0,0.21214895]
[1723904290028,0.19,59335.0,59334.0,0.21214895]
[1723904290230,0.23,59335.0,59334.0,0.08376576]
[1723904290432,0.23,59335.0,59333.0,0.14695876]
[1723904290636,0.23,59335.0,59334.0,0.21214733]
[1723904290837,0.23,59335.0,59334.0,0.08376576]
[1723904291143,0.294191,59335.0,59333.0,0.14695876]
[1723904291339,0.294191,59335.0,59334.0,0.19157505]
[1723904291636,0.171,59335.0,59334.0,0.19157505]
[1723904291841,0.031,59335.0,59334.0,0.19157505]
[1723904292228,0.032,59335.0,59334.0,0.19157505]
[1723904292541,0.001,59335.0,59334.0,0.19156891]
[1723904292741,0.00018541,59339.0,59337.0,0.063189]
[1723904292941,0.21018541,59339.0,59338.0,0.08390051]
[1723904293142,0.21018541,59339.0,59338.0,0.21227486]
[1723904293339,0.21018541,59339.0,59338.0,0.08390051]
[1723904293840,0.21018541,59339.0,59338.0,0.14708851]
[1723904294045,0.21218541,59339.0,59338.0,0.14708851]
[1723904295036,0.21218541,59339.0,59338.0,0.19156251]
[1723904295235,0.21218541,59339.0,59338.0,0.55236251]
[1723904295435,0.21218541,59339.0,59338.0,0.65287519]
[1723904295436,0.00218541,59339.0,59338.0,0.65287519]
[1723904296340,0.00218541,59339.0,59338.0,0.55236251]
[1723904296544,0.06343579,59344.0,59341.0,0.063184]
[1723904296841,0.22343579,59344.0,59342.0,0.22740419]
[1723904297341,0.21343579,59344.0,59342.0,0.1435]
[1723904297538,0.00015336,59343.0,59342.0,0.29058819]
[1723904297746,0.16015336,59343.0,59342.0,0.41894871]
[1723904298247,0.17015336,59343.0,59342.0,0.41894871]
[1723904299447,0.17015336,59343.0,59342.0,0.29058819]
[1723904299642,0.17015336,59343.0,59342.0,0.41894821]
[1723904300240,0.17115336,59343.0,59342.0,0.41894821]
[1723904300441,0.17215336,59343.0,59342.0,0.206684]
[1723904301044,0.23533636,59343.0,59342.0,0.206684]
[1723904304235,0.17215336,59343.0,59342.0,0.206684]
[1723904304442,0.16215336,59343.0,59342.0,0.206684]
[1723904305241,0.18215336,59343.0,59342.0,0.206684]
[1723904305448,0.18215336,59343.0,59342.0,0.29058819]
[1723904305841,0.18215336,59343.0,59342.0,0.206684]
[1723904306237,0.24533636,59343.0,59342.0,0.206684]
[1723904306436,0.24533636,59343.0,59342.0,0.29058819]
[1723904306842,0.24543636,59343.0,59342.0,0.29058819]
[1723904307147,0.24543636,59343.0,59342.0,0.206684]
[1723904307343,0.24543636,59343.0,59342.0,0.29058819]
[1723904307644,0.24543636,59343.0,59342.0,0.206684]
[1723904307853,0.24543636,59343.0,59342.0,0.29058819]
[1723904308050,0.24543636,59343.0,59342.0,0.4189495]
[1723904308439,0.24543636,59343.0,59342.0,0.33504531]
[1723904309348,0.24543636,59343.0,59342.0,0.23934531]
[1723904309939,0.33863636,59343.0,59342.0,0.23934531]
[1723904311647,0.33863636,59343.0,59342.0,0.19154712]
[1723904315050,0.33863636,59343.0,59342.0,0.12836312]
[1723904316255,0.27545336,59343.0,59338.0,0.10051268]
[1723904316461,0.0932,59340.0,59339.0,0.22887807]
[1723904316758,0.3332,59340.0,59339.0,0.22887807]
[1723904317150,0.396386,59340.0,59339.0,0.22887807]
[1723904317957,0.396386,59340.0,59339.0,0.12836539]
[1723904318150,0.397386,59340.0,59339.0,0.22887807]
[1723904318359,0.397386,59340.0,59339.0,0.12836539]
[1723904319263,0.398386,59340.0,59339.0,0.12836539]
[1723904320758,0.822372,59340.0,59339.0,0.12836539]
[1723904320961,0.759186,59340.0,59338.0,0.08419557]
[1723904321151,0.063188,59338.0,59337.0,0.08419557]
[1723904321352,0.696388,59338.0,59337.0,0.21257844]
[1723904321547,0.696388,59338.0,59337.0,0.08419557]
[1723904322255,0.697388,59338.0,59337.0,0.21257864]
[1723904322443,0.698388,59338.0,59337.0,0.08419557]
[1723904322642,0.698388,59338.0,59337.0,0.21257802]
[1723904323657,0.063194,59333.0,59332.0,0.10051268]
[1723904323854,0.406394,59333.0,59332.0,0.16547006]
[1723904324054,0.406394,59333.0,59332.0,0.20255968]
[1723904324451,0.406394,59333.0,59332.0,0.30307236]
[1723904324764,0.406394,59333.0,59332.0,0.26575468]
[1723904324952,0.406394,59333.0,59332.0,0.36626736]
[1723904325147,0.407394,59333.0,59332.0,0.36626736]
[1723904325353,0.407394,59333.0,59332.0,0.38385357]
[1723904325964,0.001,59333.0,59332.0,0.37654089]
[1723904326268,0.0932,59346.0,59332.0,1.22340298]
[1723904326461,0.17278058,59343.0,59342.0,0.517184]
[1723904326760,0.16025336,59343.0,59342.0,0.87597244]
[1723904326964,0.10125986,59343.0,59342.0,0.87597244]
[1723904327164,0.10125986,59343.0,59342.0,0.80179323]
[1723904327358,0.10125986,59343.0,59342.0,0.87595523]
[1723904327561,0.10225986,59343.0,59342.0,0.87595523]
[1723904327856,0.10225986,59343.0,59342.0,0.78275523]
[1723904328058,0.10325986,59343.0,59342.0,0.78275523]
[1723904329856,0.10325986,59343.0,59342.0,0.78271989]
[1723904331560,0.5938,59361.0,59342.0,0.78271965]
[1723904331761,0.5938,59361.0,59351.0,0.063174]
[1723904331762,0.29,59352.0,59351.0,0.063174]
[1723904331960,0.29,59352.0,59351.0,0.26567866]
[1723904332264,0.29,59352.0,59351.0,0.50552017]
[1723904332458,0.063165,59360.0,59351.0,0.34150466]
[1723904332671,0.273165,59360.0,59357.0,0.08397089]
[1723904333052,0.273165,59360.0,59358.0,0.21229848]
[1723904333257,0.06,59360.0,59359.0,0.27546267]
[1723904333452,0.21,59360.0,59359.0,0.19149178]
[1723904333659,0.061,59360.0,59359.0,0.36639689]
[1723904333852,0.07346205,59360.0,59359.0,0.36639689]
[1723904334264,0.13662705,59360.0,59357.0,0.063167]
[1723904334565,0.063166,59359.0,59358.0,0.08387013]
[1723904334763,0.063166,59359.0,59357.0,0.14703713]
[1723904334956,0.16,59359.0,59357.0,0.14703713]
[1723904335268,0.16,59359.0,59358.0,0.08387013]
[1723904335460,0.223166,59359.0,59357.0,0.14703713]
[1723904335656,0.223166,59359.0,59357.0,0.063167]
[1723904336054,0.224166,59359.0,59357.0,0.14703713]
[1723904336265,0.234166,59359.0,59357.0,0.14703713]
[1723904336564,0.234166,59359.0,59358.0,0.063167]
[1723904338263,0.233166,59359.0,59358.0,0.063167]
[1723904338566,0.171,59359.0,59358.0,0.063167]
[1723904339859,0.011,59359.0,59358.0,0.063167]
[1723904340356,0.001,59359.0,59358.0,0.27534991]
[1723904340661,0.001,59359.0,59358.0,0.14703713]
[1723904341563,0.001,59359.0,59358.0,0.063167]
[1723904344267,0.021,59359.0,59358.0,0.063167]
[1723904346275,0.063168,59357.0,59356.0,0.425529]
[1723904346459,0.363168,59357.0,59356.0,0.49096603]
[1723904346663,0.363168,59357.0,59356.0,0.423969]
[1723904347069,0.363168,59357.0,59356.0,0.3608]
[1723904347956,0.364168,59357.0,59356.0,0.3608]
[1723904348162,0.364168,59357.0,59356.0,0.42779703]
[1723904348360,0.365168,59357.0,59356.0,0.3608]
[1723904348559,0.364168,59357.0,59356.0,0.42779703]
[1723904348766,0.364168,59357.0,59356.0,0.06699703]
[1723904351267,0.364168,59357.0,59354.0,0.063171]
[1723904351569,0.06317,59355.0,59354.0,0.063171]
[1723904351770,0.28317,59355.0,59354.0,0.063171]
[1723904351971,0.37637,59355.0,59354.0,0.063171]
[1723904352267,0.37637,59355.0,59354.0,0.10024511]
[1723904352474,0.37637,59355.0,59354.0,0.063171]
[1723904352769,0.37637,59355.0,59354.0,0.10024517]
[1723904353366,0.37737,59355.0,59354.0,0.10024517]
[1723904353964,0.37837,59355.0,59354.0,0.10024517]
[1723904354569,0.37837,59355.0,59354.0,0.21228317]
[1723904354764,0.37837,59355.0,59354.0,0.08395549]
[1723904355465,0.37837,59355.0,59354.0,0.21228438]
[1723904355773,0.37837,59355.0,59354.0,0.12832889]
[1723904357472,0.37737,59355.0,59354.0,0.12832889]
[1723904359762,0.28417,59355.0,59354.0,0.12832889]
[1723904359960,0.051,59355.0,59354.0,0.38546496]
[1723904360165,0.001,59355.0,59354.0,0.33269989]
[1723904360566,0.001,59355.0,59354.0,0.48888231]
[1723904362472,0.3608,59370.0,59366.0,0.063158]
[1723904362774,0.14,59367.0,59366.0,0.64548689]
[1723904363072,0.18,59367.0,59366.0,0.64548689]
[1723904363378,0.191937,59367.0,59366.0,0.80164944]
[1723904363580,0.191937,59367.0,59366.0,0.64548689]
[1723904363875,0.191937,59367.0,59366.0,0.55228689]
[1723904364080,0.202937,59367.0,59366.0,0.55228689]
[1723904364765,0.198937,59367.0,59366.0,0.55228689]
[1723904364965,0.198937,59367.0,59366.0,0.55225692]
[1723904365276,0.207937,59367.0,59366.0,0.55225692]
[1723904365478,0.207937,59367.0,59366.0,0.65304066]
[1723904365776,0.204937,59367.0,59366.0,0.65304066]
[1723904365972,0.204937,59367.0,59366.0,0.29224066]
[1723904366178,0.204937,59367.0,59366.0,0.65304066]
[1723904366369,0.204937,59367.0,59366.0,0.55225692]
[1723904369177,0.204937,59367.0,59366.0,0.65304066]
[1723904369572,0.204937,59367.0,59366.0,0.65304085]
[1723904369778,0.204937,59367.0,59366.0,0.55225711]
[1723904373277,0.204937,59367.0,59366.0,0.63620136]
[1723904374070,0.204937,59367.0,59366.0,0.63620822]
[1723904374686,0.204937,59367.0,59366.0,0.50790225]
[1723904376274,0.204937,59367.0,59366.0,0.423958]
[1723904376480,0.204937,59367.0,59366.0,0.4610261]
[1723904377581,0.204937,59367.0,59366.0,0.54497035]
[1723904378387,0.204937,59367.0,59366.0,0.58203847]
[1723904378983,0.204937,59367.0,59366.0,0.54497035]
[1723904379182,0.204937,59367.0,59366.0,0.50790225]
[1723904379383,0.204937,59367.0,59366.0,0.18417038]
[1723904379676,0.204937,59367.0,59366.0,0.34954428]
[1723904379879,0.16281438,59367.0,59366.0,0.34954428]
[1723904380578,0.16281438,59367.0,59366.0,0.71034428]
[1723904380780,0.22597138,59367.0,59366.0,0.64718628]
[1723904380975,0.21011438,59367.0,59362.0,0.08394425]
[1723904381178,0.42396,59364.0,59363.0,0.03707189]
[1723904381383,0.063163,59362.0,59361.0,0.08394425]
[1723904381579,0.363163,59362.0,59361.0,0.0370732]
[1723904381787,0.363163,59362.0,59361.0,0.21230605]
[1723904382083,0.063166,59359.0,59358.0,0.3608]
[1723904382282,0.363166,59359.0,59358.0,0.5632728]
[1723904383088,0.363166,59359.0,59358.0,0.52619925]
[1723904383687,0.363166,59359.0,59358.0,0.52619949]
[1723904383987,0.363166,59359.0,59358.0,0.16539949]
[1723904384783,0.365166,59359.0,59358.0,0.20247231]
[1723904385397,0.365166,59359.0,59358.0,0.16539949]
[1723904385997,0.458366,59359.0,59358.0,0.12832569]
[1723904386978,0.458366,59359.0,59355.0,0.46314374]
[1723904387181,0.458366,59359.0,59357.0,0.08399051]
[1723904387182,0.063167,59358.0,59357.0,0.08399051]
[1723904387380,0.063168,59357.0,59356.0,0.08399051]
[1723904387592,0.559968,59357.0,59356.0,0.21232148]
[1723904387776,0.063169,59356.0,59355.0,0.3608]
[1723904387983,0.593169,59356.0,59355.0,0.3608]
[1723904388280,1.191809,59356.0,59355.0,0.3608]
[1723904388484,1.254978,59356.0,59355.0,0.3608]
[1723904389483,1.255978,59356.0,59355.0,0.3608]
[1723904389887,0.063172,59353.0,59352.0,0.08399051]
[1723904390085,0.323172,59353.0,59352.0,0.57312669]
[1723904390592,0.323172,59353.0,59352.0,0.44479051]
[1723904390984,0.324172,59353.0,59352.0,0.48913497]
[1723904391295,0.324172,59353.0,59352.0,0.57310106]
[1723904391985,0.325172,59353.0,59352.0,0.44476609]
[1723904392195,0.325172,59353.0,59350.0,0.00025279]
[1723904392196,0.6228,59353.0,59351.0,0.07846051]
[1723904392494,0.6228,59353.0,59350.0,0.00025279]
[1723904392495,0.063174,59351.0,59350.0,0.00025279]
[1723904392795,0.583174,59351.0,59350.0,0.00025279]
[1723904392995,0.628274,59351.0,59350.0,0.00025279]
[1723904394195,0.629274,59351.0,59350.0,0.00025279]
[1723904394692,0.630274,59351.0,59350.0,0.00025279]
[1723904395597,0.991074,59351.0,59350.0,0.00025279]
[1723904400494,1.054248,59351.0,59350.0,0.00025279]
[1723904402685,1.559728,59351.0,59350.0,0.00025279]
[1723904402891,1.605628,59351.0,59350.0,0.00025279]
[1723904405603,1.100148,59351.0,59350.0,0.00025279]
[1723904407990,0.9738,59351.0,59345.0,4.9e-07]
[1723904408216,0.233,59343.0,59330.0,0.05988539]
[1723904408500,0.233,59343.0,59327.0,0.05035339]
[1723904408501,0.063194,59332.0,59327.0,0.05035339]
[1723904408693,0.656999,59328.0,59327.0,0.05035339]
[1723904408888,0.656999,59328.0,59321.0,0.0452]
[1723904408889,0.063205,59322.0,59321.0,0.0452]
[1723904409100,0.183205,59322.0,59321.0,0.0452]
[1723904410299,0.063206,59321.0,59320.0,0.0493]
[1723904410493,0.063207,59320.0,59319.0,0.00016989]
[1723904410700,0.363207,59320.0,59319.0,0.00016989]
[1723904412103,0.37537613,59320.0,59319.0,0.00016989]
[1723904413101,0.37637613,59320.0,59319.0,0.00016989]
[1723904415513,0.001,59320.0,59319.0,0.06337789]
[1723904415905,0.00025279,59327.0,59326.0,0.063201]
[1723904416112,0.00025279,59327.0,59326.0,0.424001]
[1723904416804,0.00025279,59327.0,59326.0,0.472801]
[1723904417214,0.00025279,59327.0,59326.0,0.522101]
[1723904417513,0.00025279,59327.0,59326.0,0.57233513]
[1723904418514,0.06025279,59327.0,59326.0,0.57233513]
[1723904419000,0.06025279,59327.0,59326.0,0.522101]
[1723904419615,0.06025279,59327.0,59326.0,0.57233513]
[1723904419804,0.06025279,59327.0,59326.0,0.522101]
[1723904420213,0.06025279,59327.0,59326.0,0.57233513]
[1723904421001,0.06025279,59327.0,59326.0,0.21153513]
[1723904421208,0.06025279,59327.0,59326.0,0.57233513]
[1723904421802,0.06025279,59327.0,59326.0,0.522101]
[1723904422203,0.06025279,59327.0,59326.0,0.57239476]
[1723904422407,0.06025279,59327.0,59326.0,0.522101]
[1723904424917,0.01810241,59327.0,59326.0,0.522101]
[1723904425500,0.08130241,59327.0,59326.0,0.522101]
[1723904428313,0.22130241,59327.0,59319.0,0.00016989]
[1723904428517,0.063205,59322.0,59319.0,0.06337789]
[1723904428715,0.063206,59321.0,59319.0,0.06337789]
[1723904428918,0.063207,59320.0,59319.0,0.06337789]
[1723904429215,0.323207,59320.0,59319.0,0.06337789]
[1723904429610,0.323207,59320.0,59319.0,0.14720101]
[1723904429811,0.33537659,59320.0,59319.0,0.14720101]
[1723904430011,0.33537659,59320.0,59319.0,0.27560025]
[1723904430206,0.33537659,59320.0,59319.0,0.14720101]
[1723904430714,0.163207,59320.0,59319.0,0.06337789]
[1723904431122,0.163207,59320.0,59319.0,0.27560305]
[1723904431421,0.163207,59320.0,59319.0,0.27560109]
[1723904431720,0.164207,59320.0,59319.0,0.27560109]
[1723904431915,0.164207,59320.0,59319.0,0.19177797]
[1723904432111,0.101,59320.0,59319.0,0.27571182]
[1723904432421,0.101,59320.0,59319.0,1.09749465]
[1723904432621,0.101,59320.0,59319.0,1.19813903]
[1723904432921,0.101,59320.0,59319.0,1.09749465]
[1723904433223,0.101,59320.0,59319.0,0.69749465]